{"text_format":"3","workbook":"xlsx","n_sheets":4,"sheets":["Liste de courses","Répartition budgétaire","Liste de tâches","Partager la liste"],"not_rendered":{"charts":2,"images":2,"defined_names":12},"read":"whole","date_system":"1900"}

{"sheet":"Liste de courses","index":0,"n_rows":25,"n_cols":8,"rows_kept":25,"merged":[[2,1,2,7],[3,1,3,2]]}
[null,"Retour à l'école","planificateur"]
[]
[null,"Suivez la progression de vos achats par rapport aux montants des catégories de budget saisis dans la ventilation du budget."]
[null,"Résumé budgétaire",null,null,{"$f":"\"Progression des achats (\"&COUNTIFS(Liste_de_contrôle[Acheté], \">0\")&\" de \"&COUNTIFS(Liste_de_contrôle[À acheter], \">0\")&\")\"","v":"Progression des achats (1 de 6)"}]
[null,"Budget",{"v":1500,"d":"1,500.00 €"},null,{"$f":"IFERROR(COUNTIFS(Liste_de_contrôle[À acheter],\">0\",Liste_de_contrôle[Acheté],\">0\")/SommesArticlesRequis,0)","v":{"v":0.16666666666666666,"d":"17%"}}]
[null,"Total de la liste de courses",{"$f":"IFERROR(SUM(TotalListeContrôle), \"\")","v":{"v":365,"d":"365.00 €"}}]
[null,"Trésorerie restante",{"$f":"IFERROR(C5-C6, \"\")","v":{"v":1135,"d":"1,135.00 €"}}]
[null,"Liste de courses"]
[null,"Élément","Catégorie","Qté","À acheter","Coût","Acheté","Coût total"]
[null,"Mathématiques","Textbooks",{"v":1,"d":"1 "},1,{"v":55,"d":"55.00 €"},1,{"$f":"IFERROR(Liste_de_contrôle[[#This Row],[Qté]]*Liste_de_contrôle[[#This Row],[Coût]], \"\")","v":{"v":55,"d":"55.00 €"}}]
[null,"Anglais","Textbooks",{"v":1,"d":"1 "},1,null,null,{"$f":"IFERROR(Liste_de_contrôle[[#This Row],[Qté]]*Liste_de_contrôle[[#This Row],[Coût]], \"\")","v":0}]
[null,"Sac à dos","Fournitures",{"v":1,"d":"1 "},null,{"v":30,"d":"30.00 €"},null,{"$f":"IFERROR(Liste_de_contrôle[[#This Row],[Qté]]*Liste_de_contrôle[[#This Row],[Coût]], \"\")","v":{"v":30,"d":"30.00 €"}}]
[null,"Calculatrice","Fournitures",{"v":1,"d":"1 "},{"$nulls":3},{"$f":"IFERROR(Liste_de_contrôle[[#This Row],[Qté]]*Liste_de_contrôle[[#This Row],[Coût]], \"\")","v":0}]
[null,"Surligneurs","Fournitures",{"v":3,"d":"3 "},{"$nulls":3},{"$f":"IFERROR(Liste_de_contrôle[[#This Row],[Qté]]*Liste_de_contrôle[[#This Row],[Coût]], \"\")","v":0}]
[null,"Uniforme","Vêtements",{"v":2,"d":"2 "},1,{"v":100,"d":"100.00 €"},null,{"$f":"IFERROR(Liste_de_contrôle[[#This Row],[Qté]]*Liste_de_contrôle[[#This Row],[Coût]], \"\")","v":{"v":200,"d":"200.00 €"}}]
[null,"Chemise","Vêtements",{"v":4,"d":"4 "},{"$nulls":3},{"$f":"IFERROR(Liste_de_contrôle[[#This Row],[Qté]]*Liste_de_contrôle[[#This Row],[Coût]], \"\")","v":0}]
[null,"Tee-shirts","Vêtements",{"v":5,"d":"5 "},{"$nulls":3},{"$f":"IFERROR(Liste_de_contrôle[[#This Row],[Qté]]*Liste_de_contrôle[[#This Row],[Coût]], \"\")","v":0}]
[null,"Shorts","Vêtements",{"v":2,"d":"2 "},{"$nulls":3},{"$f":"IFERROR(Liste_de_contrôle[[#This Row],[Qté]]*Liste_de_contrôle[[#This Row],[Coût]], \"\")","v":0}]
[null,"Chaussures de sport","Vêtements",{"v":2,"d":"2 "},1,null,null,{"$f":"IFERROR(Liste_de_contrôle[[#This Row],[Qté]]*Liste_de_contrôle[[#This Row],[Coût]], \"\")","v":0}]
[null,"Chaussettes","Vêtements",{"v":10,"d":"10 "},{"$nulls":3},{"$f":"IFERROR(Liste_de_contrôle[[#This Row],[Qté]]*Liste_de_contrôle[[#This Row],[Coût]], \"\")","v":0}]
[null,"Veste légère","Vêtements",{"v":1,"d":"1 "},1,{"v":80,"d":"80.00 €"},null,{"$f":"IFERROR(Liste_de_contrôle[[#This Row],[Qté]]*Liste_de_contrôle[[#This Row],[Coût]], \"\")","v":{"v":80,"d":"80.00 €"}}]
[null,"Pulls","Vêtements",{"v":1,"d":"1 "},{"$nulls":3},{"$f":"IFERROR(Liste_de_contrôle[[#This Row],[Qté]]*Liste_de_contrôle[[#This Row],[Coût]], \"\")","v":0}]
[null,"Sweatshirts","Vêtements",{"v":1,"d":"1 "},{"$nulls":3},{"$f":"IFERROR(Liste_de_contrôle[[#This Row],[Qté]]*Liste_de_contrôle[[#This Row],[Coût]], \"\")","v":0}]
[null,"Sous-vêtements","Vêtements",{"v":10,"d":"10 "},{"$nulls":3},{"$f":"IFERROR(Liste_de_contrôle[[#This Row],[Qté]]*Liste_de_contrôle[[#This Row],[Coût]], \"\")","v":0}]
[null,"Veste d'hiver","Vêtements",{"v":1,"d":"1 "},1,null,null,{"$f":"IFERROR(Liste_de_contrôle[[#This Row],[Qté]]*Liste_de_contrôle[[#This Row],[Coût]], \"\")","v":0}]

{"sheet":"Répartition budgétaire","index":1,"n_rows":6,"n_cols":3,"rows_kept":6}
[null,"Répartition budgétaire"]
[null,"Ajoutez des catégories et des montants budgétaires à suivre dans votre liste de courses."]
[null,"Catégorie","Coût total"]
[null,"Vêtements",{"$f":"IFERROR(SUMIFS(Liste_de_contrôle[Coût total],Liste_de_contrôle[Catégorie],Catégorie[[#This Row],[Catégorie]]), \"\")","v":{"v":280,"d":"280.00 €"}}]
[null,"Fournitures",{"$f":"IFERROR(SUMIFS(Liste_de_contrôle[Coût total],Liste_de_contrôle[Catégorie],Catégorie[[#This Row],[Catégorie]]), \"\")","v":{"v":30,"d":"30.00 €"}}]
[null,"Textbooks",{"$f":"IFERROR(SUMIFS(Liste_de_contrôle[Coût total],Liste_de_contrôle[Catégorie],Catégorie[[#This Row],[Catégorie]]), \"\")","v":{"v":55,"d":"55.00 €"}}]

{"sheet":"Liste de tâches","index":2,"n_rows":22,"n_cols":3,"rows_kept":22}
[null,"Liste de choses à faire"]
[null,"Suivez toutes les activités que vous devez faire avant la rentrée scolaire."]
[null,"OK","Tâche"]
[null,"x","Remplir tous les formulaires d'inscription"]
[null,null,"Planifier un examen physique et visuel à l'école si nécessaire"]
[null,null,"Vérifier la liste des vaccinations obligatoires"]
[null,null,"Demander une ordonnance détaillée des médicaments au médecin traitant"]
[null,null,"Vérifier le code vestimentaire de l’école"]
[null,null,"Obtenir la liste des fournitures scolaires"]
[null,null,"Rencontrer l’enseignant"]
[null,null,"Déterminer le mode de communication favori de l’enseignant (téléphone, e-mail, note écrite)"]
[null,null,"Visiter l’établissement avec votre enfant"]
[null,null,"Aider votre enfant à mémoriser votre numéro de téléphone privé, votre numéro de téléphone professionnel et votre adresse personnelle"]
[null,null,"Organiser le transport, désigner un point de rencontre sûr et tester"]
[null,null,"Si votre enfant se rend à l’école à pied, emprunter le parcours avec lui plusieurs fois"]
[null,null,"En cas de covoiturage, présenter votre enfant à tous les conducteurs"]
[null,null,"En cas de transport en bus, déterminer les horaires et les arrêts"]
[null,null,"Organiser la garde de votre enfant après l’école"]
[null,null,"Planifier un menu pour les petits déjeuners, les collations, les pique-niques et les goûters"]
[null,null,"Déterminer le lieu et le temps consacrés aux devoirs"]
[null,null,"Fixer les heures de coucher au moins deux semaines avant la rentrée scolaire"]
[null,null,"Préparer un calendrier de tous les événements et activités de l'école"]

{"sheet":"Partager la liste","index":3,"n_rows":4,"n_cols":5,"rows_kept":4}
[null,"Partager la liste",null,null,"Partagez cette liste avec d'autres afin qu'ils puissent contribuer. Sélectionnez Partager en haut à droite ou appuyez sur ALT puis appuyez sur « Z » suivi de « S ». Enregistrez le fichier sur OneDrive et envoyez le lien à vos amis."]
[null,"Nom","Email","Partagé ?"]
[null,"Nikola Janu","nikola@example.com","Oui"]
[null,"Robert Anic","robert@example.com","Non"]